fUSD/lending_fUSD_20250305
["ID","MTS","AMOUNT","RATE_DAILY","PERIOD"]
[355505289,1741207853993,-524.32,0.00012901,2]
[355505290,1741207854002,-500.0,0.00012901,2]
[355505293,1741207854012,-687.89,0.00012901,2]
[355505295,1741207854022,-648.58,0.00012901,2]
[355505297,1741207854031,-720.21,0.00012901,2]
[355505298,1741207854040,-1112.6,0.00012901,2]
[355505300,1741207854050,-861.47,0.00012901,2]
[355505302,1741207854060,-617.73,0.00012901,2]
[355505304,1741207854068,-793.16,0.00012901,2]
[355505307,1741207854079,-500.0,0.00012901,2]
[355505308,1741207854096,-261.07218753,0.00012901,2]
[355505310,1741207854105,-1984.93,0.00012901,2]
[355505312,1741207854114,-506.29,0.00012901,2]
[355505314,1741207854124,-569.55,0.00012901,2]
[355505317,1741207854133,-579.62,0.00012901,2]
[355505318,1741207854143,-1300.87,0.00012901,2]
[355505321,1741207854152,-696.43,0.00012901,2]
[355505323,1741207854161,-500.0,0.00012901,2]
[355505325,1741207854171,-500.0,0.00012901,2]
[355505327,1741207854181,-1000.0,0.00012901,2]
[355505329,1741207854190,-1246.22,0.00012901,2]
[355505331,1741207854199,-500.0,0.00012901,2]
[355505333,1741207854208,-833.09,0.00012901,2]
[355505335,1741207854217,-2141.36,0.00012901,2]
[355505337,1741207854227,-548.0,0.00012901,2]
[355505339,1741207854236,-500.0,0.00012901,2]
[355505341,1741207854245,-2661.66,0.00012901,2]
[355505343,1741207854255,-500.0,0.00012901,2]
[355505345,1741207854264,-500.0,0.00012901,2]
[355505347,1741207854274,-3511.43,0.00012901,2]
[355505349,1741207854284,-500.0,0.00012901,2]
[355505351,1741207854293,-500.0,0.00012901,2]
[355505353,1741207854302,-1379.48,0.00012901,2]
[355505355,1741207854311,-606.73,0.00012901,2]
[355505357,1741207854320,-500.0,0.00012901,2]
[355505369,1741207854431,-834.91,0.00012901,2]
[355505371,1741207854440,-566.41,0.00012901,2]
[355505373,1741207854450,-994.62,0.00012901,2]
[355505375,1741207854460,-1213.85,0.00012901,2]
[355505377,1741207854469,-500.0,0.00012901,2]
[355505379,1741207854478,-618.75,0.00012901,2]
[355505381,1741207854488,-674.4,0.00012901,2]
[355505383,1741207854498,-861.77,0.00012901,2]
[355505385,1741207854508,-500.0,0.00012901,2]
[355505387,1741207854519,-4503.85,0.00012901,2]
[355505389,1741207854528,-667.36,0.00012901,2]
[355505391,1741207854538,-500.0,0.00012901,2]
[355505393,1741207854547,-500.0,0.00012901,2]
[355505395,1741207854557,-1315.08,0.00012901,2]
[355505397,1741207854566,-500.0,0.00012901,2]
[355505399,1741207854576,-500.0,0.00012901,2]
[355505401,1741207854585,-500.0,0.00012901,2]
[355505403,1741207854595,-500.0,0.00012901,2]
[355505405,1741207854604,-704.95,0.00012901,2]
[355505407,1741207854614,-894.43,0.00012901,2]
[355505409,1741207854623,-777.71,0.00012901,2]
[355505411,1741207854633,-500.0,0.00012901,2]
[355505413,1741207854643,-639.8,0.00012901,2]
[355505415,1741207854652,-500.0,0.00012901,2]
[355505417,1741207854662,-868.22,0.00012901,2]
[355505419,1741207854671,-500.0,0.00012901,2]
[355505421,1741207854681,-656.8,0.00012901,2]
[355505423,1741207854690,-500.0,0.00012901,2]
[355505425,1741207854700,-500.0,0.00012901,2]
[355505427,1741207854709,-1807.46,0.00012901,2]
[355505429,1741207854718,-500.0,0.00012901,2]
[355505431,1741207854728,-500.0,0.00012901,2]
[355505433,1741207854739,-500.0,0.00012901,2]
[355505435,1741207854750,-4753.34,0.00012901,2]
[355505437,1741207854759,-627.49,0.00012901,2]
[355505439,1741207854769,-500.0,0.00012901,2]
[355505441,1741207854778,-710.49,0.00012901,2]
[355505442,1741207854789,-500.0,0.00012901,2]
[355505445,1741207854800,-517.43,0.00012901,2]
[355505447,1741207854810,-4299.19,0.00012901,2]
[355505448,1741207854820,-500.0,0.00012901,2]
[355505451,1741207854831,-646.61,0.00012901,2]
[355505453,1741207854840,-500.0,0.00012901,2]
[355505455,1741207854850,-1277.34,0.00012901,2]
[355505457,1741207854859,-500.0,0.00012901,2]
[355505459,1741207854869,-627.04,0.00012901,2]
[355505461,1741207854879,-1573.92,0.00012901,2]
[355505463,1741207854888,-500.0,0.00012901,2]
[355505465,1741207854898,-812.75,0.00012901,2]
[355505467,1741207854907,-662.49,0.00012901,2]
[355505468,1741207854917,-500.0,0.00012901,2]
[355505471,1741207854926,-500.0,0.00012901,2]
[355505473,1741207854936,-500.0,0.00012901,2]
[355505475,1741207854946,-500.0,0.00012901,2]
[355505477,1741207854955,-586.54,0.00012901,2]
[355505479,1741207854965,-500.0,0.00012901,2]
[355505481,1741207854974,-500.0,0.00012901,2]
[355505483,1741207854984,-500.0,0.00012901,2]
[355505485,1741207854994,-567.81,0.00012901,2]
[355505487,1741207855004,-500.0,0.00012901,2]
[355505489,1741207855013,-3138.78,0.00012901,2]
[355505491,1741207855024,-1728.33,0.00012901,2]
[355505493,1741207855033,-1786.43,0.00012901,2]
[355505495,1741207855043,-500.0,0.00012901,2]
[355505497,1741207855052,-508.91,0.00012901,2]
[355505499,1741207855061,-2400.14,0.00012901,2]
[355505501,1741207855071,-500.0,0.00012901,2]
[355505503,1741207855080,-500.0,0.00012901,2]
[355505505,1741207855089,-244.25916636,0.00012902,2]
[355505506,1741207855099,-500.0,0.00012902,2]
[355505508,1741207855108,-500.0,0.00012902,2]
[355505511,1741207855118,-349.60053185,0.00012902,2]
[355505512,1741207855128,-500.0,0.00012902,2]
[355505514,1741207855138,-500.0,0.00012902,2]
[355505516,1741207855147,-500.0,0.00012902,2]
[355505519,1741207855157,-500.0,0.00012902,2]
[355505520,1741207855167,-500.0,0.00012902,2]
[355505521,1741207855176,-500.0,0.00012902,2]
[355505522,1741207855186,-500.0,0.00012902,2]
[355505523,1741207855196,-500.0,0.00012902,2]
[355505524,1741207855206,-412.40131656,0.00012902,2]
[355505525,1741207855215,-500.0,0.00012902,2]
[355505526,1741207855224,-500.0,0.00012902,2]
[355505527,1741207855233,-500.0,0.00012902,2]
[355505528,1741207855243,-256.23646523,0.00012902,2]
[355505529,1741207855252,-500.0,0.00012902,2]
[355505530,1741207855261,-628.48874953,0.00012902,2]
[355505532,1741207855271,-500.0,0.00012902,2]
[355505533,1741207855280,-500.0,0.00012902,2]
[355505536,1741207855290,-500.0,0.00012902,2]
[355505538,1741207855299,-500.0,0.00012902,2]
[355505539,1741207855308,-500.0,0.00012902,2]
[355505541,1741207855318,-500.0,0.00012902,2]
[355505543,1741207855328,-500.0,0.00012902,2]
[355505545,1741207855337,-500.0,0.00012902,2]
[355505547,1741207855347,-500.0,0.00012902,2]
[355505549,1741207855356,-500.0,0.00012902,2]
[355505552,1741207855366,-370.62312971,0.00012902,2]
[355505554,1741207855376,-500.0,0.00012902,2]
[355505556,1741207855385,-500.0,0.00012902,2]
[355505558,1741207855394,-500.0,0.00012902,2]
[355505559,1741207855403,-500.0,0.00012902,2]
[355505561,1741207855412,-500.0,0.00012902,2]
[355505564,1741207855422,-500.0,0.00012902,2]
[355505566,1741207855432,-500.0,0.00012902,2]
[355505568,1741207855441,-573.36,0.00012902,2]
[355505570,1741207855451,-500.0,0.00012902,2]
[355505572,1741207855461,-500.0,0.00012902,2]
[355505574,1741207855470,-500.0,0.00012902,2]
[355505575,1741207855479,-500.0,0.00012902,2]
[355505578,1741207855489,-500.0,0.00012902,2]
[355505579,1741207855498,-500.0,0.00012902,2]
[355505582,1741207855508,-500.0,0.00012902,2]
[355505583,1741207855519,-500.0,0.00012902,2]
[355505586,1741207855529,-551.94,0.00012902,2]
[355505588,1741207855539,-698.68,0.00012902,2]
[355505589,1741207855548,-428.19754306,0.00012902,2]
[355505591,1741207855558,-500.0,0.00012902,2]
[355505593,1741207855567,-500.0,0.00012902,2]
[355505595,1741207855577,-1148.05,0.00012902,2]
[355505597,1741207855587,-566.38,0.00012902,2]
[355505600,1741207855596,-500.0,0.00012902,2]
[355505602,1741207855606,-500.0,0.00012902,2]
[355505603,1741207855616,-500.0,0.00012902,2]
[355505605,1741207855625,-500.0,0.00012902,2]
[355505607,1741207855635,-500.0,0.00012902,2]
[355505610,1741207855645,-500.0,0.00012902,2]
[355505612,1741207855655,-500.0,0.00012902,2]
[355505614,1741207855665,-500.0,0.00012902,2]
[355505616,1741207855674,-500.0,0.00012902,2]
[355505618,1741207855684,-500.0,0.00012902,2]
[355505620,1741207855693,-544.14,0.00012902,2]
[355505622,1741207855704,-500.0,0.00012902,2]
[355505624,1741207855714,-500.0,0.00012902,2]
[355505626,1741207855724,-500.0,0.00012902,2]
[355505628,1741207855733,-500.0,0.00012902,2]
[355505630,1741207855744,-547.59,0.00012902,2]
[355505632,1741207855757,-500.0,0.00012902,2]
[355505634,1741207855766,-500.0,0.00012902,2]
[355505636,1741207855776,-500.0,0.00012902,2]
[355505637,1741207855787,-500.0,0.00012902,2]
[355505639,1741207855796,-500.0,0.00012902,2]
[355505642,1741207855806,-510.39,0.00012902,2]
[355505644,1741207855816,-500.0,0.00012902,2]
[355505646,1741207855826,-500.0,0.00012902,2]
[355505648,1741207855836,-747.03,0.00012902,2]
[355505650,1741207855847,-507.04,0.00012902,2]
[355505652,1741207855857,-519.74,0.00012902,2]
[355505654,1741207855866,-500.0,0.00012902,2]
[355505656,1741207855875,-533.61,0.00012902,2]
[355505658,1741207855884,-500.0,0.00012902,2]
[355505660,1741207855894,-500.0,0.00012902,2]
[355505662,1741207855903,-500.0,0.00012902,2]
[355505664,1741207855913,-500.0,0.00012902,2]
[355505666,1741207855922,-500.0,0.00012902,2]
[355505668,1741207855931,-619.38,0.00012902,2]
[355505670,1741207855941,-500.0,0.00012902,2]
[355505672,1741207855950,-500.0,0.00012902,2]
[355505674,1741207855960,-823.22,0.00012902,2]
[355505676,1741207855969,-500.0,0.00012902,2]
[355505678,1741207855979,-856.67,0.00012902,2]
[355505680,1741207855988,-500.0,0.00012902,2]
[355505682,1741207855998,-539.54,0.00012902,2]
[355505684,1741207856008,-500.0,0.00012902,2]
[355505686,1741207856017,-737.73,0.00012902,2]
[355505688,1741207856027,-214.98105136,0.00012902,2]
[355505690,1741207856037,-500.0,0.00012903,2]
[355505692,1741207856047,-500.0,0.00012903,2]
[355505694,1741207856057,-500.0,0.00012903,2]
[355505696,1741207856066,-500.0,0.00012903,2]
[355505698,1741207856075,-500.0,0.00012903,2]
[355505700,1741207856085,-500.0,0.00012903,2]
[355505702,1741207856095,-5800.0,0.00012911,2]
[355505704,1741207856104,-5800.0,0.0001292,2]
[355505706,1741207856117,-5800.0,0.00012928,2]
[355505708,1741207856129,-5800.0,0.00012937,2]
[355505710,1741207856138,-5800.0,0.00012945,2]
[355505712,1741207856147,-250.0,0.00012952,2]
[355505714,1741207856156,-5800.0,0.00012953,2]
[355505716,1741207856165,-5800.0,0.00012962,2]
[355505718,1741207856175,-55073.86892928,0.00012973,2]
[355505720,1741207856185,-2833.45950812,0.0001299,2]
[355505722,1741207856195,-422.14670244,0.00012996,2]
[355505724,1741207856205,-918.42543949,0.00012996,2]
[355505726,1741207856214,-1000.0,0.00012999,2]
[355505728,1741207856224,-1000.0,0.00012999,2]
[355505730,1741207856233,-1000.0,0.00012999,2]
[355505732,1741207856242,-1000.0,0.00012999,2]
[355505734,1741207856251,-1000.0,0.00012999,2]
[355505736,1741207856261,-1000.0,0.00012999,2]
[355505738,1741207856271,-1000.0,0.00012999,2]
[355505740,1741207856281,-4055.84,0.00012999,2]
[355505742,1741207856290,-394887.70562743,0.00013,2]
[355505797,1741207856807,-120500.0,0.00013,2]
[355505799,1741207856819,-398.89694603,0.00013,2]
[355505838,1741207857183,-203.03803613,0.000119,2]
[355505840,1741207857192,-203.03803613,0.00012,2]
[355505842,1741207857201,-203.03803613,0.000121,2]
[355505844,1741207857211,-203.03803613,0.000122,2]
[355505846,1741207857220,-1302.84,0.00012627,2]
[355505848,1741207857230,-49.1087248,0.00012901,2]
[355505851,1741207857252,-203.03803613,0.000123,2]
[355505853,1741207857262,-1253.7312752,0.00012901,2]
[355505855,1741207857272,-647.93,0.00012902,2]
[355505857,1741207857282,-171433.99459673,0.00013,2]
[355505860,1741207857293,-815410.5788543,0.00013,2]
[355505870,1741207857382,-558.908,0.00013,2]
[355505922,1741207857904,-203.03803613,0.000124,2]
[355505923,1741207857914,-203.03803613,0.000125,2]
[355505924,1741207857923,-203.03803613,0.000126,2]
[355505925,1741207857933,-203.03803613,0.000127,2]
[355505926,1741207857943,-122.03746477,0.000128,2]
[355505927,1741207857955,-81.00057136,0.000128,2]
[355505928,1741207857964,-203.03803613,0.000129,2]
[355505929,1741207857974,-4251.52680294,0.00013,2]
[355505931,1741207857985,-3297.0999978,0.00013,2]
[355505979,1741207858639,-903.53,0.00013,2]
[355505980,1741207858651,-827442.05641392,0.00013,2]
[355505981,1741207858662,-172557.94358608,0.00013,2]
[355505982,1741207858674,-1645.8934959,0.00013,2]
[355505983,1741207858689,-4088.73416885,0.00013,2]
[355505984,1741207858700,-1718.02,0.00013,2]
[355506004,1741207859015,-553.90674923,0.00013,2]
[355506009,1741207859129,-65.60228381,0.00013,2]
[355506011,1741207859140,-475.72044319,0.00013,2]
[355506014,1741207859206,-1607.24954462,0.00013,2]
[355506015,1741207859279,-9079.11700109,0.00013,2]
[355506016,1741207859289,-1192.33104222,0.00013,2]
[355506017,1741207859299,-742.76065078,0.00013,2]
[355506018,1741207859310,-7883.29877371,0.00013,2]
[355506019,1741207937789,500.0,0.0001018,2]
[355506020,1741207938841,500.0,0.0001018,2]
[355506021,1741207996595,700.0,0.0001018,2]
[355506022,1741208106411,153.0,0.0001018,3]
[355506023,1741208136684,660.1,0.00010096,2]
[355506024,1741208411810,153.0,0.0001018,3]
[355506025,1741208712164,154.0,0.0001018,3]
[355506039,1741209011512,154.0,0.0001018,3]
[355506040,1741209028325,900.0,9.084e-05,2]
[355506041,1741209031766,-405.70529999,0.00010454,2]
[355506044,1741209031823,-325.03749876,0.00010454,2]
[355506045,1741209032301,-169.25720125,0.00010454,2]
[355506046,1741209032328,-194.16733028,0.00011,2]
[355506061,1741209037897,-355.83266972,0.00011,2]
[355506062,1741209037907,-150.0,0.0001125,2]
[355506063,1741209037917,-150.0,0.00011444,2]
[355506064,1741209037927,-997.02,0.000115,2]
[355506065,1741209037936,-8506.22,0.00011582,2]
[355506066,1741209037946,-250.0,0.00011586,2]
[355506067,1741209037957,-164.4,0.00011612,2]
[355506068,1741209037969,-1216.972,0.00011615,2]
[355506069,1741209037978,-274.929,0.00011615,2]
[355506070,1741209037988,-150.0,0.00011615,2]
[355506071,1741209037999,-1000.0,0.00011713,2]
[355506072,1741209038009,-900.0,0.00011824,2]
[355506073,1741209038019,-150.0,0.00011943,7]
[355506074,1741209038031,-300.0,0.00012034,2]
[355506075,1741209038040,-150.0,0.000121,2]
[355506076,1741209038052,-550.0,0.000121,2]
[355506077,1741209038061,-500.0,0.00012247,2]
[355506079,1741209038072,-500.0,0.00012353,2]
[355506081,1741209038081,-500.0,0.00012353,2]
[355506083,1741209038091,-500.0,0.00012353,2]
[355506085,1741209038100,-174.88692839,0.00012353,2]
[355506267,1741209039888,-325.11307161,0.00012353,2]
[355506269,1741209039897,-500.0,0.00012353,2]
[355506271,1741209039907,-500.0,0.00012353,2]
[355506273,1741209039917,-25.50148079,0.00012353,2]
[355506290,1741209040060,-474.49851921,0.00012353,2]
[355506292,1741209040072,-37.93168296,0.00012353,2]
[355506340,1741209040520,-462.06831704,0.00012353,2]
[355506342,1741209040529,-500.0,0.00012353,2]
[355506344,1741209040538,-500.0,0.00012353,2]
[355506346,1741209040547,-221.50587402,0.00012353,2]
[355506348,1741209040558,-278.49412598,0.00012353,2]
[355506350,1741209040569,-500.0,0.00012353,2]
[355506352,1741209040578,-491.49724112,0.00012353,2]
[355506354,1741209040590,-8.50275888,0.00012353,2]
[355506356,1741209040598,-398.06709798,0.00012353,2]
[355506358,1741209040607,-500.0,0.00012353,2]
[355506360,1741209040616,-500.0,0.00012353,2]
[355506362,1741209040626,-500.0,0.00012353,2]
[355506364,1741209040635,-500.0,0.00012353,2]
[355506366,1741209040644,-500.0,0.00012353,2]
[355506368,1741209040653,-500.0,0.00012353,2]
[355506370,1741209040662,-500.0,0.00012353,2]
[355506372,1741209040672,-500.0,0.00012353,2]
[355506374,1741209040681,-500.0,0.00012353,2]
[355506376,1741209040690,-500.0,0.00012353,2]
[355506378,1741209040699,-500.0,0.00012353,2]
[355506380,1741209040708,-35.65662307,0.00012353,2]
[355506382,1741209040719,-464.34337693,0.00012353,2]
[355506384,1741209040729,-500.0,0.00012353,2]
[355506386,1741209040738,-500.0,0.00012353,2]
[355506388,1741209040747,-500.0,0.00012353,2]
[355506390,1741209040756,-500.0,0.00012353,2]
[355506392,1741209040766,-500.0,0.00012353,2]
[355506394,1741209040775,-500.0,0.00012353,2]
[355506396,1741209040785,-500.0,0.00012353,2]
[355506398,1741209040794,-500.0,0.00012353,2]
[355506400,1741209040804,-500.0,0.00012353,2]
[355506402,1741209040813,-813.2,0.00012353,2]
[355506404,1741209040823,-500.0,0.00012353,2]
[355506406,1741209040833,-201.61499946,0.00012353,2]
[355506408,1741209040844,-298.38500054,0.00012353,2]
[355506410,1741209040854,-500.0,0.00012353,2]
[355506412,1741209040863,-500.0,0.00012353,2]
[355506414,1741209040872,-500.0,0.00012353,2]
[355506416,1741209040882,-500.0,0.00012353,2]
[355506418,1741209040891,-500.0,0.00012353,2]
[355506420,1741209040900,-500.0,0.00012353,2]
[355506422,1741209040910,-500.0,0.00012353,2]
[355506424,1741209040920,-330.25486829,0.00012353,2]
[355506427,1741209040932,-169.74513171,0.00012353,2]
[355506429,1741209040941,-500.0,0.00012353,2]
[355506431,1741209040952,-464.39582927,0.00012353,2]
[355506615,1741209042906,-35.60417073,0.00012353,2]
[355506616,1741209042915,-500.0,0.00012353,2]
[355506617,1741209042924,-500.0,0.00012353,2]
[355506618,1741209042933,-500.0,0.00012353,2]
[355506619,1741209042942,-500.0,0.00012353,2]
[355506620,1741209042951,-500.0,0.00012353,2]
[355506621,1741209042960,-529.15,0.00012353,2]
[355506623,1741209042970,-500.0,0.00012353,2]
[355506624,1741209042979,-500.0,0.00012353,2]
[355506625,1741209042989,-500.0,0.00012353,2]
[355506626,1741209042998,-500.0,0.00012353,2]
[355506627,1741209043008,-500.0,0.00012353,2]
[355506628,1741209043017,-500.0,0.00012353,2]
[355506629,1741209043027,-500.0,0.00012353,2]
[355506630,1741209043037,-500.0,0.00012353,2]
[355506631,1741209043047,-583.11,0.00012353,2]
[355506632,1741209043057,-500.0,0.00012353,2]
[355506633,1741209043067,-606.81,0.00012353,2]
[355506634,1741209043076,-500.0,0.00012353,2]
[355506635,1741209043086,-500.0,0.00012353,2]
[355506636,1741209043096,-500.0,0.00012353,2]
[355506637,1741209043106,-500.0,0.00012353,2]
[355506638,1741209043116,-500.0,0.00012353,2]
[355506639,1741209043129,-500.0,0.00012353,2]
[355506640,1741209043140,-660.1,0.0001236,2]
[355506641,1741209043150,-3027.01152083,0.00012525,2]
[355506642,1741209043160,-500.0,0.00012526,2]
[355506643,1741209043170,-3027.01152079,0.00012567,2]
[355506645,1741209043179,-790.686,0.00012606,2]
[355506646,1741209043189,-3027.01152079,0.00012608,2]
[355506647,1741209043198,-838.24,0.00012624,2]
[355506648,1741209043208,-497.77495,0.00012624,2]
[355506649,1741209043219,-1822.83,0.00012624,2]
[355506650,1741209043230,-1580.66,0.00012624,2]
[355506651,1741209043242,-569.87,0.00012624,2]
[355506652,1741209043251,-579.198291,0.00012624,2]
[355506653,1741209043261,-503.03,0.00012624,2]
[355506654,1741209043270,-634.97,0.00012624,2]
[355506655,1741209043280,-601.9,0.00012624,2]
[355506656,1741209043290,-567.51,0.00012624,2]
[355506657,1741209043299,-694.01,0.00012624,2]
[355506658,1741209043309,-507.16,0.00012624,2]
[355506659,1741209043319,-500.0,0.00012624,2]
[355506660,1741209043329,-157.83506971,0.00012624,2]
[355506663,1741209045785,-932.60493029,0.00012624,2]
[355506664,1741209045795,-2328.95,0.00012624,2]
[355506665,1741209045805,-500.0,0.00012624,2]
[355506666,1741209045815,-500.0,0.00012624,2]
[355506667,1741209045825,-277.94506971,0.00012624,2]
[355506668,1741209045837,-3122.60406618,0.00012624,2]
[355506669,1741209045850,-540.32086411,0.00012624,2]
[355506670,1741209045859,-1041.67,0.00012624,2]
[355506671,1741209045868,-2100.12,0.00012624,2]
[355506672,1741209045878,-500.0,0.00012624,2]
[355506673,1741209045887,-224.13913589,0.00012624,2]
[355506679,1741209046178,-491.63086411,0.00012624,2]
[355506681,1741209046188,-579.67,0.00012624,2]
[355506683,1741209046197,-563.43,0.00012624,2]
[355506685,1741209046207,-500.0,0.00012624,2]
[355506687,1741209046217,-1563.13,0.00012624,2]
[355506689,1741209046226,-1730.48,0.00012624,2]
[355506690,1741209046236,-500.0,0.00012624,2]
[355506692,1741209046246,-500.0,0.00012624,2]
[355506694,1741209046255,-973.52,0.00012624,2]
[355506696,1741209046264,-1522.85,0.00012624,2]
[355506698,1741209046273,-566.2,0.00012624,2]
[355506700,1741209046284,-728.95,0.00012624,2]
[355506701,1741209046293,-821.54,0.00012624,2]
[355506702,1741209046303,-540.51,0.00012624,2]
[355506703,1741209046314,-500.0,0.00012625,2]
[355506704,1741209046323,-500.0,0.00012625,2]
[355506705,1741209046332,-500.0,0.00012625,2]
[355506706,1741209046342,-500.0,0.00012625,2]
[355506707,1741209046352,-500.0,0.00012625,2]
[355506708,1741209046362,-500.0,0.00012625,2]
[355506709,1741209046371,-500.0,0.00012625,2]
[355506710,1741209046381,-500.0,0.00012625,2]
[355506711,1741209046391,-500.0,0.00012625,2]
[355506712,1741209046400,-500.0,0.00012625,2]
[355506713,1741209046410,-500.0,0.00012625,2]
[355506714,1741209046421,-500.0,0.00012625,2]
[355506715,1741209046432,-500.0,0.00012625,2]
[355506716,1741209046441,-500.0,0.00012625,2]
[355506717,1741209046451,-500.0,0.00012625,2]
[355506718,1741209046461,-500.0,0.00012625,2]
[355506719,1741209046473,-500.0,0.00012625,2]
[355506720,1741209046482,-500.0,0.00012625,2]
[355506721,1741209046491,-500.0,0.00012625,2]
[355506722,1741209046500,-500.0,0.00012625,2]
[355506723,1741209046509,-500.0,0.00012625,2]
[355506724,1741209046518,-500.0,0.00012625,2]
[355506725,1741209046527,-500.0,0.00012625,2]
[355506726,1741209046536,-500.0,0.00012625,2]
[355506727,1741209046545,-500.0,0.00012625,2]
[355506728,1741209046554,-500.0,0.00012625,2]
[355506729,1741209046563,-500.0,0.00012625,2]
[355506730,1741209046572,-500.0,0.00012625,2]
[355506731,1741209046581,-500.0,0.00012625,2]
[355506732,1741209046591,-500.0,0.00012625,2]
[355506733,1741209046602,-500.0,0.00012625,2]
[355506734,1741209046613,-500.0,0.00012625,2]
[355506735,1741209046622,-500.0,0.00012625,2]
[355506736,1741209046632,-500.0,0.00012625,2]
[355506737,1741209046642,-500.0,0.00012625,2]
[355506738,1741209046652,-500.0,0.00012625,2]
[355506739,1741209046661,-500.0,0.00012625,2]
[355506740,1741209046670,-500.0,0.00012625,2]
[355506741,1741209046679,-500.0,0.00012625,2]
[355506742,1741209046689,-500.0,0.00012625,2]
[355506743,1741209046698,-500.0,0.00012625,2]
[355506744,1741209046708,-500.0,0.00012625,2]
[355506745,1741209046717,-500.0,0.00012625,2]
[355506746,1741209046727,-500.0,0.00012625,2]
[355506747,1741209046736,-500.0,0.00012625,2]
[355506748,1741209046746,-500.0,0.00012625,2]
[355506749,1741209046755,-500.0,0.00012625,2]
[355506750,1741209046764,-500.0,0.00012625,2]
[355506751,1741209046773,-526.18,0.00012625,2]
[355506752,1741209046783,-500.0,0.00012625,2]
[355506753,1741209046792,-500.0,0.00012625,2]
[355506754,1741209046802,-500.0,0.00012625,2]
[355506755,1741209046811,-500.0,0.00012625,2]
[355506756,1741209046821,-500.0,0.00012625,2]
[355506757,1741209046830,-541.41,0.00012625,2]
[355506758,1741209046839,-500.0,0.00012625,2]
[355506759,1741209046848,-1138.26,0.00012625,2]
[355506760,1741209046857,-500.0,0.00012625,2]
[355506761,1741209046867,-500.0,0.00012625,2]
[355506762,1741209046877,-278.75712318,0.00012625,2]
[355506763,1741209046886,-500.0,0.00012625,2]
[355506764,1741209046895,-500.0,0.00012625,2]
[355506765,1741209046905,-500.0,0.00012625,2]
[355506766,1741209046914,-3072.5,0.00012625,2]
[355506767,1741209046923,-500.0,0.00012625,2]
[355506768,1741209046932,-559.83,0.00012625,2]
[355506769,1741209046942,-594.24947514,0.00012625,2]
[355506770,1741209046952,-500.0,0.00012625,2]
[355506771,1741209046961,-870.3,0.00012625,2]
[355506772,1741209046971,-500.0,0.00012625,2]
[355506773,1741209046981,-500.0,0.00012625,2]
[355506774,1741209046990,-583.94,0.00012625,2]
[355506775,1741209047000,-530.89,0.00012625,2]
[355506776,1741209047009,-500.0,0.00012625,2]
[355506777,1741209047018,-500.0,0.00012625,2]
[355506778,1741209047028,-500.0,0.00012625,2]
[355506779,1741209047037,-500.0,0.00012625,2]
[355506780,1741209047046,-574.7,0.00012625,2]
[355506781,1741209047056,-500.0,0.00012625,2]
[355506782,1741209047066,-500.0,0.00012625,2]